Workbook

Sheet Finanzierung
G1: Berechnung der Hypothek für ein Haus
B2: Erwerbskosten | K2: Betrag
D3: Kaufpreis Immobilie | G3: Neu / Gebraucht: | H3: G | K3: 200.000 €
D4: Grundstückswert | K4: 0 €
D5: Grunderwerbssteuer | G5: 3,50% | K5: =of:=IF([.K4]=0;[.K3]*[.G5];[.K4]*[.G5]) -> 7000
D6: Notar-/Gerichtskosten | G6: 2,00% | K6: =of:=([.K3]+[.K4])*[.G6] -> 4.000 €
D7: Maklerkosten | E7: [j/n]: | F7: J | G7: 5,00% | K7: =of:=IF([.F7]="J";([.K3]+[.K4])*[.G7];0) -> 10.000 €
D8: Erschließungskosten | K8: 0 €
D9: Renovierung-/Modernisierung | K9: 10.000 €
J10: Summe | K10: =of:=SUM([.K3:.K9]) -> 231.000 €
D12: Eigenkapital (bar) | K12: 100.000 €
I13: Finanzierungsbedarf | K13: =of:=[.K10]-[.K12] -> 131.000 €
B14: Berechnung der anfänglichen Zinskosten
D15: Bank | F15: Laufz. [Jahre] | G15: Darlehn | H15: Zins (nom.) | I15: Fest-schreibung [Jahre] | J15: Zins (eff.) | K15: Mtl. Belastung
C16: 1 | D16: Bank1 | F16: =of:=ROUND(IF([.G16]>0;-NPER(Zins1;[TILHyp1.E5];0;[.G16]);0);0) -> 17 | G16: 100.000 € | H16: 1,93% | I16: 15 | J16: =of:=EFFECT([.H16];12) -> 1,95 % | K16: =of:=[.G16]*[.H16]/12 -> 161 €
C17: 2 | D17: Bank2 (KfW?) | F17: =of:=ROUND(IF([.G17]>0;-NPER(Zins2;[TILHyp2.E5];0;[.G17]);0);0) -> 32 | G17: 31.000 € | H17: 2,70% | I17: 10 | J17: =of:=EFFECT([.H17];12) -> 2,73 % | K17: =of:=[.G17]*[.H17]/12 -> 70 €
C18: 3 | D18: Bank3 | F18: =of:=ROUND(IF([.G18]>0;-NPER(ZinsBank1;[TIL_B1.E5];0;[.G18];0));0) -> 0 | G18: 0 € | H18: 0,00% | J18: =of:=EFFECT([.H18];12) -> 0,00 % | K18: =of:=[.G18]*[.H18]/12 -> 0 €
C19: 4 | D19: Bank4 | F19: =of:=ROUND(IF([.G19]>0;-NPER(ZinsBank2;[TIL_B2.E5];0;[.G19]);0);0) -> 0 | G19: 0 € | H19: 0,00% | J19: =of:=EFFECT([.H19];12) -> 0,00 % | K19: =of:=[.G19]*[.H19]/12 -> 0 €
G20: =of:=[.G16]+[.G17] -> 131.000 € | H20: =of:=IF([.G20]<>[.K13];"X";"") ->  | I20: Summe Zinsen | K20: =of:=SUM([.K16:.K19]) -> 230.5833333
B21: Berechnung der anfänglichen Tilgungsaufwendungen | H21: =of:=IF([.H20]="X";"ACHTUNG: Summe der Darlehn stimmt nicht mit dem Finanzierungsbedarf überein!";"") -> 
F22: ca. Laufz. | H22: Tilgung
C23: 1 | D23: =of:=[.$D$16] -> Bank1 | F23: =of:=[.F16] -> 17 | H23: 5,00% | K23: =of:=[.G16]*[.H23]/12 -> 416.6666667
C24: 2 | D24: =of:=[.$D$17] -> Bank2 (KfW?) | F24: =of:=[.F17] -> 32 | H24: 2,00% | K24: =of:=[.G17]*[.H24]/12 -> 52 €
C25: 3 | D25: =of:=[.$D$18] -> Bank3 | F25: =of:=[.F18] -> 0 | H25: 0,00% | K25: =of:=[.G18]*[.H25]/12 -> 0 €
C26: 4 | D26: =of:=[.$D$19] -> Bank4 | F26: =of:=[.F19] -> 0 | H26: 0,00% | K26: =of:=[.G19]*[.H26]/12 -> 0 €
I27: Summe Tilgung | K27: =of:=SUM([.K23:.K26]) -> 468 €
I28: Summe Belastung mtl. | K28: =of:=[.K20]+[.K27] -> 699 €
B29: Steuerl. Entlastung
D31: Eigenheimzul.j/n | F31: n | G31: =of:=IF([.F31]="J";IF([.H3]="N";2556.46+([.F32]*766.94);(1278.23+([.F32]*766.94)));0) -> 0,00 € | H31: =of:=[.G31]*8 -> 0 | K31: =of:=[.G31]/12 -> 0 €
D32: Anzahl Kinder | F32: 0
I33: Eff. Belastung | K33: =of:=[.K28]-[.K31] -> 699 €

Sheet TILHyp1
A1: =of:=[$Finanzierung.$D$16] -> Bank1 | B1: =of:=Hypo1 -> 100.000 € | D1: Zins | E1: =of:=Zins1 -> 1,93 %
A3: Jahr | B3: Zinsen | C3: Zinsen/a | D3: Tilgung/a | E3: Annuität/a | F3: Restschuld
B4: =of:=[.E1] -> 1,93% | F4: =of:=Hypo1 -> 100.000 €
A5: 1. | B5: =of:=[.B4] -> 1,93% | C5: =of:=[.F4]*[.B4] -> 1.930 € | D5: =of:=TIL1*12 -> 5000 | E5: =of:=[.$C$5]+[.$D$5] -> 6.930 € | F5: =of:=[.F4]-[.D5] -> 95.000 €
A6: 2. | B6: =of:=[.B5] -> 1,93% | C6: =of:=[.F5]*[.B5] -> 1.834 € | D6: =of:=[.E6]-[.C6] -> 5.097 € | E6: =of:=[.$C$5]+[.$D$5] -> 6.930 € | F6: =of:=[.F5]-[.D5] -> 90.000 €
A7: 3. | B7: =of:=[.B6] -> 1,93% | C7: =of:=[.F6]*[.B6] -> 1.737 € | D7: =of:=[.E7]-[.C7] -> 5.193 € | E7: =of:=[.$C$5]+[.$D$5] -> 6.930 € | F7: =of:=[.F6]-[.D6] -> 84.904 €
A8: 4. | B8: =of:=[.B7] -> 1,93% | C8: =of:=[.F7]*[.B7] -> 1.639 € | D8: =of:=[.E8]-[.C8] -> 5.291 € | E8: =of:=[.$C$5]+[.$D$5] -> 6.930 € | F8: =of:=[.F7]-[.D7] -> 79.711 €
A9: 5. | B9: =of:=[.B8] -> 1,93% | C9: =of:=[.F8]*[.B8] -> 1.538 € | D9: =of:=[.E9]-[.C9] -> 5.392 € | E9: =of:=[.$C$5]+[.$D$5] -> 6.930 € | F9: =of:=[.F8]-[.D8] -> 74.419 €
A10: 6. | B10: =of:=[.B9] -> 1,93% | C10: =of:=[.F9]*[.B9] -> 1.436 € | D10: =of:=[.E10]-[.C10] -> 5.494 € | E10: =of:=[.$C$5]+[.$D$5] -> 6.930 € | F10: =of:=[.F9]-[.D9] -> 69.028 €
A11: 7. | B11: =of:=[.B10] -> 1,93% | C11: =of:=[.F10]*[.B10] -> 1.332 € | D11: =of:=[.E11]-[.C11] -> 5.598 € | E11: =of:=[.$C$5]+[.$D$5] -> 6.930 € | F11: =of:=[.F10]-[.D10] -> 63.534 €
A12: 8. | B12: =of:=[.B11] -> 1,93% | C12: =of:=[.F11]*[.B11] -> 1.226 € | D12: =of:=[.E12]-[.C12] -> 5.704 € | E12: =of:=[.$C$5]+[.$D$5] -> 6.930 € | F12: =of:=[.F11]-[.D11] -> 57.936 €
A13: 9. | B13: =of:=[.B12] -> 1,93% | C13: =of:=[.F12]*[.B12] -> 1.118 € | D13: =of:=IF([.F13]=0;0;[.E13]-[.C13]) -> 5.812 € | E13: =of:=IF([.F13]<=0;0;[.E12]) -> 6.930 € | F13: =of:=IF([.F12]-[.D12]>0;[.F12]-[.D12];0) -> 52.232 €
A14: 10. | B14: =of:=[.B13] -> 1,93% | C14: =of:=[.F13]*[.B13] -> 1.008 € | D14: =of:=IF([.F14]=0;0;[.E14]-[.C14]) -> 5.922 € | E14: =of:=IF([.F14]<=0;0;[.E13]) -> 6.930 € | F14: =of:=IF([.F13]-[.D13]>0;[.F13]-[.D13];0) -> 46.420 €
A15: 11. | B15: =of:=[.B14] -> 1,93% | C15: =of:=[.F14]*[.B14] -> 896 € | D15: =of:=IF([.F15]=0;0;[.E15]-[.C15]) -> 6.034 € | E15: =of:=IF([.F15]<=0;0;[.E14]) -> 6.930 € | F15: =of:=IF([.F14]-[.D14]>0;[.F14]-[.D14];0) -> 40.499 €
A16: 12. | B16: =of:=[.B15] -> 1,93% | C16: =of:=[.F15]*[.B15] -> 782 € | D16: =of:=IF([.F16]=0;0;[.E16]-[.C16]) -> 6.148 € | E16: =of:=IF([.F16]<=0;0;[.E15]) -> 6.930 € | F16: =of:=IF([.F15]-[.D15]>0;[.F15]-[.D15];0) -> 34.464 €
A17: 13. | B17: =of:=[.B16] -> 1,93% | C17: =of:=[.F16]*[.B16] -> 665 € | D17: =of:=IF([.F17]=0;0;[.E17]-[.C17]) -> 6.265 € | E17: =of:=IF([.F17]<=0;0;[.E16]) -> 6.930 € | F17: =of:=IF([.F16]-[.D16]>0;[.F16]-[.D16];0) -> 28.316 €
A18: 14. | B18: =of:=[.B17] -> 1,93% | C18: =of:=[.F17]*[.B17] -> 546 € | D18: =of:=IF([.F18]=0;0;[.E18]-[.C18]) -> 6.384 € | E18: =of:=IF([.F18]<=0;0;[.E17]) -> 6.930 € | F18: =of:=IF([.F17]-[.D17]>0;[.F17]-[.D17];0) -> 22.051 €
A19: 15. | B19: =of:=[.B18] -> 1,93% | C19: =of:=[.F18]*[.B18] -> 426 € | D19: =of:=IF([.F19]=0;0;[.E19]-[.C19]) -> 6.504 € | E19: =of:=IF([.F19]<=0;0;[.E18]) -> 6.930 € | F19: =of:=IF([.F18]-[.D18]>0;[.F18]-[.D18];0) -> 15.668 €
A20: 16. | B20: 6,00% | C20: =of:=[.F19]*[.B19] -> 302 € | D20: =of:=IF([.F20]=0;0;[.E20]-[.C20]) -> 6.628 € | E20: =of:=IF([.F20]<=0;0;[.E19]) -> 6.930 € | F20: =of:=IF([.F19]-[.D19]>0;[.F19]-[.D19];0) -> 9.163 €
A21: 17. | B21: =of:=[.B20] -> 6,00% | C21: =of:=[.F20]*[.B20] -> 550 € | D21: =of:=IF([.F21]=0;0;[.E21]-[.C21]) -> 6.380 € | E21: =of:=IF([.F21]<=0;0;[.E20]) -> 6.930 € | F21: =of:=IF([.F20]-[.D20]>0;[.F20]-[.D20];0) -> 2.536 €
A22: 18. | B22: =of:=[.B21] -> 6,00% | C22: =of:=[.F21]*[.B21] -> 152 € | D22: =of:=IF([.F22]=0;0;[.E22]-[.C22]) -> 0 € | E22: =of:=IF([.F22]<=0;0;[.E21]) -> 0 € | F22: =of:=IF([.F21]-[.D21]>0;[.F21]-[.D21];0) -> 0 €
A23: 19. | B23: =of:=[.B22] -> 6,00% | C23: =of:=[.F22]*[.B22] -> 0 € | D23: =of:=IF([.F23]=0;0;[.E23]-[.C23]) -> 0 € | E23: =of:=IF([.F23]<=0;0;[.E22]) -> 0 € | F23: =of:=IF([.F22]-[.D22]>0;[.F22]-[.D22];0) -> 0 €
A24: 20. | B24: =of:=[.B23] -> 6,00% | C24: =of:=[.F23]*[.B23] -> 0 € | D24: =of:=IF([.F24]=0;0;[.E24]-[.C24]) -> 0 € | E24: =of:=IF([.F24]<=0;0;[.E23]) -> 0 € | F24: =of:=IF([.F23]-[.D23]>0;[.F23]-[.D23];0) -> 0 €
A25: 21. | B25: =of:=[.B24] -> 6,00% | C25: =of:=[.F24]*[.B24] -> 0 € | D25: =of:=IF([.F25]=0;0;[.E25]-[.C25]) -> 0 € | E25: =of:=IF([.F25]<=0;0;[.E24]) -> 0 € | F25: =of:=IF([.F24]-[.D24]>0;[.F24]-[.D24];0) -> 0 €
A26: 22. | B26: =of:=[.B25] -> 6,00% | C26: =of:=[.F25]*[.B25] -> 0 € | D26: =of:=IF([.F26]=0;0;[.E26]-[.C26]) -> 0 € | E26: =of:=IF([.F26]<=0;0;[.E25]) -> 0 € | F26: =of:=IF([.F25]-[.D25]>0;[.F25]-[.D25];0) -> 0 €
A27: 23. | B27: =of:=[.B26] -> 6,00% | C27: =of:=[.F26]*[.B26] -> 0 € | D27: =of:=IF([.F27]=0;0;[.E27]-[.C27]) -> 0 € | E27: =of:=IF([.F27]<=0;0;[.E26]) -> 0 € | F27: =of:=IF([.F26]-[.D26]>0;[.F26]-[.D26];0) -> 0 €
A28: 24. | B28: =of:=[.B27] -> 6,00% | C28: =of:=[.F27]*[.B27] -> 0 € | D28: =of:=IF([.F28]=0;0;[.E28]-[.C28]) -> 0 € | E28: =of:=IF([.F28]<=0;0;[.E27]) -> 0 € | F28: =of:=IF([.F27]-[.D27]>0;[.F27]-[.D27];0) -> 0 €
A29: 25. | B29: =of:=[.B28] -> 6,00% | C29: =of:=[.F28]*[.B28] -> 0 € | D29: =of:=IF([.F29]=0;0;[.E29]-[.C29]) -> 0 € | E29: =of:=IF([.F29]<=0;0;[.E28]) -> 0 € | F29: =of:=IF([.F28]-[.D28]>0;[.F28]-[.D28];0) -> 0 €
A30: 26. | B30: =of:=[.B29] -> 6,00% | C30: =of:=[.F29]*[.B29] -> 0 € | D30: =of:=IF([.F30]=0;0;[.E30]-[.C30]) -> 0 € | E30: =of:=IF([.F30]<=0;0;[.E29]) -> 0 € | F30: =of:=IF([.F29]-[.D29]>0;[.F29]-[.D29];0) -> 0 €
A31: 27. | B31: =of:=[.B30] -> 6,00% | C31: =of:=[.F30]*[.B30] -> 0 € | D31: =of:=IF([.F31]=0;0;[.E31]-[.C31]) -> 0 € | E31: =of:=IF([.F31]<=0;0;[.E30]) -> 0 € | F31: =of:=IF([.F30]-[.D30]>0;[.F30]-[.D30];0) -> 0 €
A32: 28. | B32: =of:=[.B31] -> 6,00% | C32: =of:=[.F31]*[.B31] -> 0 € | D32: =of:=IF([.F32]=0;0;[.E32]-[.C32]) -> 0 € | E32: =of:=IF([.F32]<=0;0;[.E31]) -> 0 € | F32: =of:=IF([.F31]-[.D31]>0;[.F31]-[.D31];0) -> 0 €
A33: 29. | B33: =of:=[.B32] -> 6,00% | C33: =of:=[.F32]*[.B32] -> 0 € | D33: =of:=IF([.F33]=0;0;[.E33]-[.C33]) -> 0 € | E33: =of:=IF([.F33]<=0;0;[.E32]) -> 0 € | F33: =of:=IF([.F32]-[.D32]>0;[.F32]-[.D32];0) -> 0 €
A34: 30. | B34: =of:=[.B33] -> 6,00% | C34: =of:=[.F33]*[.B33] -> 0 € | D34: =of:=IF([.F34]=0;0;[.E34]-[.C34]) -> 0 € | E34: =of:=IF([.F34]<=0;0;[.E33]) -> 0 € | F34: =of:=IF([.F33]-[.D33]>0;[.F33]-[.D33];0) -> 0 €
A35: 31. | B35: =of:=[.B34] -> 6,00% | C35: =of:=[.F34]*[.B34] -> 0 € | D35: =of:=IF([.F35]=0;0;[.E35]-[.C35]) -> 0 € | E35: =of:=IF([.F35]<=0;0;[.E34]) -> 0 € | F35: =of:=IF([.F34]-[.D34]>0;[.F34]-[.D34];0) -> 0 €
A36: 32. | B36: =of:=[.B35] -> 6,00% | C36: =of:=[.F35]*[.B35] -> 0 € | D36: =of:=IF([.F36]=0;0;[.E36]-[.C36]) -> 0 € | E36: =of:=IF([.F36]<=0;0;[.E35]) -> 0 € | F36: =of:=IF([.F35]-[.D35]>0;[.F35]-[.D35];0) -> 0 €
A37: 33. | B37: =of:=[.B36] -> 6,00% | C37: =of:=[.F36]*[.B36] -> 0 € | D37: =of:=IF([.F37]=0;0;[.E37]-[.C37]) -> 0 € | E37: =of:=IF([.F37]<=0;0;[.E36]) -> 0 € | F37: =of:=IF([.F36]-[.D36]>0;[.F36]-[.D36];0) -> 0 €
A38: 34. | B38: =of:=[.B37] -> 6,00% | C38: =of:=[.F37]*[.B37] -> 0 € | D38: =of:=IF([.F38]=0;0;[.E38]-[.C38]) -> 0 € | E38: =of:=IF([.F38]<=0;0;[.E37]) -> 0 € | F38: =of:=IF([.F37]-[.D37]>0;[.F37]-[.D37];0) -> 0 €
A39: 35. | B39: =of:=[.B38] -> 6,00% | C39: =of:=[.F38]*[.B38] -> 0 € | D39: =of:=IF([.F39]=0;0;[.E39]-[.C39]) -> 0 € | E39: =of:=IF([.F39]<=0;0;[.E38]) -> 0 € | F39: =of:=IF([.F38]-[.D38]>0;[.F38]-[.D38];0) -> 0 €
A40: 36. | B40: =of:=[.B39] -> 6,00% | C40: =of:=[.F39]*[.B39] -> 0 € | D40: =of:=IF([.F40]=0;0;[.E40]-[.C40]) -> 0 € | E40: =of:=IF([.F40]<=0;0;[.E39]) -> 0 € | F40: =of:=IF([.F39]-[.D39]>0;[.F39]-[.D39];0) -> 0 €

Sheet TILHyp2
A1: =of:=[$Finanzierung.$D$17] -> Bank2 (KfW?) | B1: =of:=Hypo2 -> 31.000 € | D1: Zins | E1: =of:=Zins2 -> 2,70 %
A3: Jahr | B3: Zinsen | C3: Zinsen/a | D3: Tilgung/a | E3: Annuität/a | F3: Restschuld
B4: =of:=[.E1] -> 2,70% | F4: =of:=Hypo2 -> 31.000 €
A5: 1. | B5: =of:=[.B4] -> 2,70% | C5: =of:=[.F4]*[.B4] -> 837 € | D5: =of:=TIL2*12 -> 620 | E5: =of:=[.$C$5]+[.$D$5] -> 1.457 € | F5: =of:=Hypo2 -> 31.000 €
A6: 2. | B6: =of:=[.B5] -> 2,70% | C6: =of:=[.F5]*[.B5] -> 837 € | D6: =of:=[.E6]-[.C6] -> 620 € | E6: =of:=[.$C$5]+[.$D$5] -> 1.457 € | F6: =of:=[.F5]-[.D5] -> 30.380 €
A7: 3. | B7: =of:=[.B6] -> 2,70% | C7: =of:=[.F6]*[.B6] -> 820 € | D7: =of:=[.E7]-[.C7] -> 637 € | E7: =of:=[.$C$5]+[.$D$5] -> 1.457 € | F7: =of:=[.F6]-[.D6] -> 29.760 €
A8: 4. | B8: =of:=[.B7] -> 2,70% | C8: =of:=[.F7]*[.B7] -> 804 € | D8: =of:=[.E8]-[.C8] -> 653 € | E8: =of:=[.$C$5]+[.$D$5] -> 1.457 € | F8: =of:=[.F7]-[.D7] -> 29.123 €
A9: 5. | B9: =of:=[.B8] -> 2,70% | C9: =of:=[.F8]*[.B8] -> 786 € | D9: =of:=[.E9]-[.C9] -> 671 € | E9: =of:=[.$C$5]+[.$D$5] -> 1.457 € | F9: =of:=[.F8]-[.D8] -> 28.470 €
A10: 6. | B10: =of:=[.B9] -> 2,70% | C10: =of:=[.F9]*[.B9] -> 769 € | D10: =of:=[.E10]-[.C10] -> 688 € | E10: =of:=[.$C$5]+[.$D$5] -> 1.457 € | F10: =of:=[.F9]-[.D9] -> 27.799 €
A11: 7. | B11: =of:=[.B10] -> 2,70% | C11: =of:=[.F10]*[.B10] -> 751 € | D11: =of:=[.E11]-[.C11] -> 706 € | E11: =of:=[.$C$5]+[.$D$5] -> 1.457 € | F11: =of:=[.F10]-[.D10] -> 27.111 €
A12: 8. | B12: =of:=[.B11] -> 2,70% | C12: =of:=[.F11]*[.B11] -> 732 € | D12: =of:=[.E12]-[.C12] -> 725 € | E12: =of:=[.$C$5]+[.$D$5] -> 1.457 € | F12: =of:=[.F11]-[.D11] -> 26.404 €
A13: 9. | B13: =of:=[.B12] -> 2,70% | C13: =of:=[.F12]*[.B12] -> 713 € | D13: =of:=IF([.F13]=0;0;[.E13]-[.C13]) -> 744 € | E13: =of:=IF([.F13]<=0;0;[.E12]) -> 1.457 € | F13: =of:=IF([.F12]-[.D12]>0;[.F12]-[.D12];0) -> 25.679 €
A14: 10. | B14: =of:=[.B13] -> 2,70% | C14: =of:=[.F13]*[.B13] -> 693 € | D14: =of:=IF([.F14]=0;0;[.E14]-[.C14]) -> 764 € | E14: =of:=IF([.F14]<=0;0;[.E13]) -> 1.457 € | F14: =of:=IF([.F13]-[.D13]>0;[.F13]-[.D13];0) -> 24.935 €
A15: 11. | B15: 3,00% | C15: =of:=[.F14]*[.B14] -> 673 € | D15: =of:=IF([.F15]=0;0;[.E15]-[.C15]) -> 784 € | E15: =of:=[.E14] -> 1.457 € | F15: =of:=[.F14]-[.D14] -> 24.172 € | H15: ACHTUNG: in Zelle B15 ist ein neuer Zinssatz nach Ablauf
A16: 12. | B16: =of:=[.B15] -> 3,00% | C16: =of:=[.F15]*[.B15] -> 725 € | D16: =of:=IF([.F16]=0;0;[.E16]-[.C16]) -> 732 € | E16: =of:=IF([.F16]<=0;0;[.E15]) -> 1.457 € | F16: =of:=IF([.F15]-[.D15]>0;[.F15]-[.D15];0) -> 23.388 € | H16: der Zinsbindung eingegeben (Mittelwert der letzten Jahre)
A17: 13. | B17: =of:=[.B16] -> 3,00% | C17: =of:=[.F16]*[.B16] -> 702 € | D17: =of:=IF([.F17]=0;0;[.E17]-[.C17]) -> 755 € | E17: =of:=IF([.F17]<=0;0;[.E16]) -> 1.457 € | F17: =of:=IF([.F16]-[.D16]>0;[.F16]-[.D16];0) -> 22.656 € | H17: Ggf. Muß die Annuität (hier E15) erhöht werden, damit keine
A18: 14. | B18: =of:=[.B17] -> 3,00% | C18: =of:=[.F17]*[.B17] -> 680 € | D18: =of:=IF([.F18]=0;0;[.E18]-[.C18]) -> 777 € | E18: =of:=IF([.F18]<=0;0;[.E17]) -> 1.457 € | F18: =of:=IF([.F17]-[.D17]>0;[.F17]-[.D17];0) -> 21.901 € | H18: negativen Werte entstehen.
A19: 15. | B19: =of:=[.B18] -> 3,00% | C19: =of:=[.F18]*[.B18] -> 657 € | D19: =of:=IF([.F19]=0;0;[.E19]-[.C19]) -> 800 € | E19: =of:=IF([.F19]<=0;0;[.E18]) -> 1.457 € | F19: =of:=IF([.F18]-[.D18]>0;[.F18]-[.D18];0) -> 21.123 €
A20: 16. | B20: =of:=[.B19] -> 3,00% | C20: =of:=[.F19]*[.B19] -> 634 € | D20: =of:=IF([.F20]=0;0;[.E20]-[.C20]) -> 823 € | E20: =of:=IF([.F20]<=0;0;[.E19]) -> 1.457 € | F20: =of:=IF([.F19]-[.D19]>0;[.F19]-[.D19];0) -> 20.323 €
A21: 17. | B21: =of:=[.B20] -> 3,00% | C21: =of:=[.F20]*[.B20] -> 610 € | D21: =of:=IF([.F21]=0;0;[.E21]-[.C21]) -> 847 € | E21: =of:=IF([.F21]<=0;0;[.E20]) -> 1.457 € | F21: =of:=IF([.F20]-[.D20]>0;[.F20]-[.D20];0) -> 19.500 €
A22: 18. | B22: =of:=[.B21] -> 3,00% | C22: =of:=[.F21]*[.B21] -> 585 € | D22: =of:=IF([.F22]=0;0;[.E22]-[.C22]) -> 872 € | E22: =of:=IF([.F22]<=0;0;[.E21]) -> 1.457 € | F22: =of:=IF([.F21]-[.D21]>0;[.F21]-[.D21];0) -> 18.653 €
A23: 19. | B23: =of:=[.B22] -> 3,00% | C23: =of:=[.F22]*[.B22] -> 560 € | D23: =of:=IF([.F23]=0;0;[.E23]-[.C23]) -> 897 € | E23: =of:=IF([.F23]<=0;0;[.E22]) -> 1.457 € | F23: =of:=IF([.F22]-[.D22]>0;[.F22]-[.D22];0) -> 17.781 €
A24: 20. | B24: =of:=[.B23] -> 3,00% | C24: =of:=[.F23]*[.B23] -> 533 € | D24: =of:=IF([.F24]=0;0;[.E24]-[.C24]) -> 924 € | E24: =of:=IF([.F24]<=0;0;[.E23]) -> 1.457 € | F24: =of:=IF([.F23]-[.D23]>0;[.F23]-[.D23];0) -> 16.883 €
A25: 21. | B25: =of:=[.B24] -> 3,00% | C25: =of:=[.F24]*[.B24] -> 507 € | D25: =of:=IF([.F25]=0;0;[.E25]-[.C25]) -> 950 € | E25: =of:=IF([.F25]<=0;0;[.E24]) -> 1.457 € | F25: =of:=IF([.F24]-[.D24]>0;[.F24]-[.D24];0) -> 15.960 €
A26: 22. | B26: =of:=[.B25] -> 3,00% | C26: =of:=[.F25]*[.B25] -> 479 € | D26: =of:=IF([.F26]=0;0;[.E26]-[.C26]) -> 978 € | E26: =of:=IF([.F26]<=0;0;[.E25]) -> 1.457 € | F26: =of:=IF([.F25]-[.D25]>0;[.F25]-[.D25];0) -> 15.009 €
A27: 23. | B27: =of:=[.B26] -> 3,00% | C27: =of:=[.F26]*[.B26] -> 450 € | D27: =of:=IF([.F27]=0;0;[.E27]-[.C27]) -> 1.007 € | E27: =of:=IF([.F27]<=0;0;[.E26]) -> 1.457 € | F27: =of:=IF([.F26]-[.D26]>0;[.F26]-[.D26];0) -> 14.031 €
A28: 24. | B28: =of:=[.B27] -> 3,00% | C28: =of:=[.F27]*[.B27] -> 421 € | D28: =of:=IF([.F28]=0;0;[.E28]-[.C28]) -> 1.036 € | E28: =of:=IF([.F28]<=0;0;[.E27]) -> 1.457 € | F28: =of:=IF([.F27]-[.D27]>0;[.F27]-[.D27];0) -> 13.024 €
A29: 25. | B29: =of:=[.B28] -> 3,00% | C29: =of:=[.F28]*[.B28] -> 391 € | D29: =of:=IF([.F29]=0;0;[.E29]-[.C29]) -> 1.066 € | E29: =of:=IF([.F29]<=0;0;[.E28]) -> 1.457 € | F29: =of:=IF([.F28]-[.D28]>0;[.F28]-[.D28];0) -> 11.988 €
A30: 26. | B30: =of:=[.B29] -> 3,00% | C30: =of:=[.F29]*[.B29] -> 360 € | D30: =of:=IF([.F30]=0;0;[.E30]-[.C30]) -> 1.097 € | E30: =of:=IF([.F30]<=0;0;[.E29]) -> 1.457 € | F30: =of:=IF([.F29]-[.D29]>0;[.F29]-[.D29];0) -> 10.922 €
A31: 27. | B31: =of:=[.B30] -> 3,00% | C31: =of:=[.F30]*[.B30] -> 328 € | D31: =of:=IF([.F31]=0;0;[.E31]-[.C31]) -> 1.129 € | E31: =of:=IF([.F31]<=0;0;[.E30]) -> 1.457 € | F31: =of:=IF([.F30]-[.D30]>0;[.F30]-[.D30];0) -> 9.825 €
A32: 28. | B32: =of:=[.B31] -> 3,00% | C32: =of:=[.F31]*[.B31] -> 295 € | D32: =of:=IF([.F32]=0;0;[.E32]-[.C32]) -> 1.162 € | E32: =of:=IF([.F32]<=0;0;[.E31]) -> 1.457 € | F32: =of:=IF([.F31]-[.D31]>0;[.F31]-[.D31];0) -> 8.695 €
A33: 29. | B33: =of:=[.B32] -> 3,00% | C33: =of:=[.F32]*[.B32] -> 261 € | D33: =of:=IF([.F33]=0;0;[.E33]-[.C33]) -> 1.196 € | E33: =of:=IF([.F33]<=0;0;[.E32]) -> 1.457 € | F33: =of:=IF([.F32]-[.D32]>0;[.F32]-[.D32];0) -> 7.533 €
A34: 30. | B34: =of:=[.B33] -> 3,00% | C34: =of:=[.F33]*[.B33] -> 226 € | D34: =of:=IF([.F34]=0;0;[.E34]-[.C34]) -> 1.231 € | E34: =of:=IF([.F34]<=0;0;[.E33]) -> 1.457 € | F34: =of:=IF([.F33]-[.D33]>0;[.F33]-[.D33];0) -> 6.337 €
A35: 31. | B35: =of:=[.B34] -> 3,00% | C35: =of:=[.F34]*[.B34] -> 190 € | D35: =of:=IF([.F35]=0;0;[.E35]-[.C35]) -> 1.267 € | E35: =of:=IF([.F35]<=0;0;[.E34]) -> 1.457 € | F35: =of:=IF([.F34]-[.D34]>0;[.F34]-[.D34];0) -> 5.106 €
A36: 32. | B36: =of:=[.B35] -> 3,00% | C36: =of:=[.F35]*[.B35] -> 153 € | D36: =of:=IF([.F36]=0;0;[.E36]-[.C36]) -> 1.304 € | E36: =of:=IF([.F36]<=0;0;[.E35]) -> 1.457 € | F36: =of:=IF([.F35]-[.D35]>0;[.F35]-[.D35];0) -> 3.839 €
A37: 33. | B37: =of:=[.B36] -> 3,00% | C37: =of:=[.F36]*[.B36] -> 115 € | D37: =of:=IF([.F37]=0;0;[.E37]-[.C37]) -> 1.342 € | E37: =of:=IF([.F37]<=0;0;[.E36]) -> 1.457 € | F37: =of:=IF([.F36]-[.D36]>0;[.F36]-[.D36];0) -> 2.535 €
A38: 34. | B38: =of:=[.B37] -> 3,00% | C38: =of:=[.F37]*[.B37] -> 76 € | D38: =of:=IF([.F38]=0;0;[.E38]-[.C38]) -> 1.381 € | E38: =of:=IF([.F38]<=0;0;[.E37]) -> 1.457 € | F38: =of:=IF([.F37]-[.D37]>0;[.F37]-[.D37];0) -> 1.193 €
A39: 35. | B39: =of:=[.B38] -> 3,00% | C39: =of:=[.F38]*[.B38] -> 36 € | D39: =of:=IF([.F39]=0;0;[.E39]-[.C39]) -> 0 € | E39: =of:=IF([.F39]<=0;0;[.E38]) -> 0 € | F39: =of:=IF([.F38]-[.D38]>0;[.F38]-[.D38];0) -> 0 €

Sheet TIL_B1
A1: =of:=[$Finanzierung.$D$18] -> Bank3 | B1: =of:=Bank1 -> 0 € | D1: Zins | E1: =of:=ZinsBank1 -> 0,00 %
A3: Jahr | B3: Zinsen | C3: Zinsen/a | D3: Tilgung/a | E3: Annuität/a | F3: Restschuld
B4: =of:=ZinsBank1 -> 0,00% | F4: =of:=[.B1] -> 0 €
A5: 1. | B5: =of:=[.B4] -> 0,00% | C5: =of:=[.F4]*[.B4] -> 0 € | D5: =of:=TIL3*12 -> 0 € | E5: =of:=[.$C$5]+[.$D$5] -> 0 € | F5: =of:=[.F4]-[.D5] -> 0 €
A6: 2. | B6: =of:=[.B5] -> 0,00% | C6: =of:=[.F5]*[.B5] -> 0 € | D6: =of:=[.E6]-[.C6] -> 0 € | E6: =of:=[.$C$5]+[.$D$5] -> 0 € | F6: =of:=[.F5]-[.D5] -> 0 €
A7: 3. | B7: =of:=[.B6] -> 0,00% | C7: =of:=[.F6]*[.B6] -> 0 € | D7: =of:=[.E7]-[.C7] -> 0 € | E7: =of:=[.$C$5]+[.$D$5] -> 0 € | F7: =of:=[.F6]-[.D6] -> 0 €
A8: 4. | B8: =of:=[.B7] -> 0,00% | C8: =of:=[.F7]*[.B7] -> 0 € | D8: =of:=[.E8]-[.C8] -> 0 € | E8: =of:=[.$C$5]+[.$D$5] -> 0 € | F8: =of:=[.F7]-[.D7] -> 0 €
A9: 5. | B9: =of:=[.B8] -> 0,00% | C9: =of:=[.F8]*[.B8] -> 0 € | D9: =of:=[.E9]-[.C9] -> 0 € | E9: =of:=[.$C$5]+[.$D$5] -> 0 € | F9: =of:=[.F8]-[.D8] -> 0 €
A10: 6. | B10: =of:=[.B9] -> 0,00% | C10: =of:=[.F9]*[.B9] -> 0 € | D10: =of:=[.E10]-[.C10] -> 0 € | E10: =of:=[.$C$5]+[.$D$5] -> 0 € | F10: =of:=[.F9]-[.D9] -> 0 €
A11: 7. | B11: =of:=[.B10] -> 0,00% | C11: =of:=[.F10]*[.B10] -> 0 € | D11: =of:=[.E11]-[.C11] -> 0 € | E11: =of:=[.$C$5]+[.$D$5] -> 0 € | F11: =of:=[.F10]-[.D10] -> 0 €
A12: 8. | B12: =of:=[.B11] -> 0,00% | C12: =of:=[.F11]*[.B11] -> 0 € | D12: =of:=[.E12]-[.C12] -> 0 € | E12: =of:=[.$C$5]+[.$D$5] -> 0 € | F12: =of:=[.F11]-[.D11] -> 0 €
A13: 9. | B13: =of:=[.B12] -> 0,00% | C13: =of:=[.F12]*[.B12] -> 0 € | D13: =of:=IF([.F13]=0;0;[.E13]-[.C13]) -> 0 € | E13: =of:=IF([.F13]<=0;0;[.E12]) -> 0 € | F13: =of:=IF([.F12]-[.D12]>0;[.F12]-[.D12];0) -> 0 €
A14: 10. | B14: =of:=[.B13] -> 0,00% | C14: =of:=[.F13]*[.B13] -> 0 € | D14: =of:=IF([.F14]=0;0;[.E14]-[.C14]) -> 0 € | E14: =of:=IF([.F14]<=0;0;[.E13]) -> 0 € | F14: =of:=IF([.F13]-[.D13]>0;[.F13]-[.D13];0) -> 0 €
A15: 11. | B15: =of:=[.B14] -> 0,00% | C15: =of:=[.F14]*[.B14] -> 0 € | D15: =of:=IF([.F15]=0;0;[.E15]-[.C15]) -> 0 € | E15: =of:=IF([.F15]<=0;0;[.E14]) -> 0 € | F15: =of:=IF([.F14]-[.D14]>0;[.F14]-[.D14];0) -> 0 €
A16: 12. | B16: =of:=[.B15] -> 0,00% | C16: =of:=[.F15]*[.B15] -> 0 € | D16: =of:=IF([.F16]=0;0;[.E16]-[.C16]) -> 0 € | E16: =of:=IF([.F16]<=0;0;[.E15]) -> 0 € | F16: =of:=IF([.F15]-[.D15]>0;[.F15]-[.D15];0) -> 0 €
A17: 13. | B17: =of:=[.B16] -> 0,00% | C17: =of:=[.F16]*[.B16] -> 0 € | D17: =of:=IF([.F17]=0;0;[.E17]-[.C17]) -> 0 € | E17: =of:=IF([.F17]<=0;0;[.E16]) -> 0 € | F17: =of:=IF([.F16]-[.D16]>0;[.F16]-[.D16];0) -> 0 €
A18: 14. | B18: =of:=[.B17] -> 0,00% | C18: =of:=[.F17]*[.B17] -> 0 € | D18: =of:=IF([.F18]=0;0;[.E18]-[.C18]) -> 0 € | E18: =of:=IF([.F18]<=0;0;[.E17]) -> 0 € | F18: =of:=IF([.F17]-[.D17]>0;[.F17]-[.D17];0) -> 0 €
A19: 15. | B19: =of:=[.B18] -> 0,00% | C19: =of:=[.F18]*[.B18] -> 0 € | D19: =of:=IF([.F19]=0;0;[.E19]-[.C19]) -> 0 € | E19: =of:=IF([.F19]<=0;0;[.E18]) -> 0 € | F19: =of:=IF([.F18]-[.D18]>0;[.F18]-[.D18];0) -> 0 €
A20: 16. | B20: =of:=[.B19] -> 0,00% | C20: =of:=[.F19]*[.B19] -> 0 € | D20: =of:=IF([.F20]=0;0;[.E20]-[.C20]) -> 0 € | E20: =of:=IF([.F20]<=0;0;[.E19]) -> 0 € | F20: =of:=IF([.F19]-[.D19]>0;[.F19]-[.D19];0) -> 0 €
A21: 17. | B21: =of:=[.B20] -> 0,00% | C21: =of:=[.F20]*[.B20] -> 0 € | D21: =of:=IF([.F21]=0;0;[.E21]-[.C21]) -> 0 € | E21: =of:=IF([.F21]<=0;0;[.E20]) -> 0 € | F21: =of:=IF([.F20]-[.D20]>0;[.F20]-[.D20];0) -> 0 €
A22: 18. | B22: =of:=[.B21] -> 0,00% | C22: =of:=[.F21]*[.B21] -> 0 € | D22: =of:=IF([.F22]=0;0;[.E22]-[.C22]) -> 0 € | E22: =of:=IF([.F22]<=0;0;[.E21]) -> 0 € | F22: =of:=IF([.F21]-[.D21]>0;[.F21]-[.D21];0) -> 0 €
A23: 19. | B23: =of:=[.B22] -> 0,00% | C23: =of:=[.F22]*[.B22] -> 0 € | D23: =of:=IF([.F23]=0;0;[.E23]-[.C23]) -> 0 € | E23: =of:=IF([.F23]<=0;0;[.E22]) -> 0 € | F23: =of:=IF([.F22]-[.D22]>0;[.F22]-[.D22];0) -> 0 €
A24: 20. | B24: =of:=[.B23] -> 0,00% | C24: =of:=[.F23]*[.B23] -> 0 € | D24: =of:=IF([.F24]=0;0;[.E24]-[.C24]) -> 0 € | E24: =of:=IF([.F24]<=0;0;[.E23]) -> 0 € | F24: =of:=IF([.F23]-[.D23]>0;[.F23]-[.D23];0) -> 0 €
A25: 21. | B25: =of:=[.B24] -> 0,00% | C25: =of:=[.F24]*[.B24] -> 0 € | D25: =of:=IF([.F25]=0;0;[.E25]-[.C25]) -> 0 € | E25: =of:=IF([.F25]<=0;0;[.E24]) -> 0 € | F25: =of:=IF([.F24]-[.D24]>0;[.F24]-[.D24];0) -> 0 €
A26: 22. | B26: =of:=[.B25] -> 0,00% | C26: =of:=[.F25]*[.B25] -> 0 € | D26: =of:=IF([.F26]=0;0;[.E26]-[.C26]) -> 0 € | E26: =of:=IF([.F26]<=0;0;[.E25]) -> 0 € | F26: =of:=IF([.F25]-[.D25]>0;[.F25]-[.D25];0) -> 0 €
A27: 23. | B27: =of:=[.B26] -> 0,00% | C27: =of:=[.F26]*[.B26] -> 0 € | D27: =of:=IF([.F27]=0;0;[.E27]-[.C27]) -> 0 € | E27: =of:=IF([.F27]<=0;0;[.E26]) -> 0 € | F27: =of:=IF([.F26]-[.D26]>0;[.F26]-[.D26];0) -> 0 €
A28: 24. | B28: =of:=[.B27] -> 0,00% | C28: =of:=[.F27]*[.B27] -> 0 € | D28: =of:=IF([.F28]=0;0;[.E28]-[.C28]) -> 0 € | E28: =of:=IF([.F28]<=0;0;[.E27]) -> 0 € | F28: =of:=IF([.F27]-[.D27]>0;[.F27]-[.D27];0) -> 0 €
A29: 25. | B29: =of:=[.B28] -> 0,00% | C29: =of:=[.F28]*[.B28] -> 0 € | D29: =of:=IF([.F29]=0;0;[.E29]-[.C29]) -> 0 € | E29: =of:=IF([.F29]<=0;0;[.E28]) -> 0 € | F29: =of:=IF([.F28]-[.D28]>0;[.F28]-[.D28];0) -> 0 €
A30: 26. | B30: =of:=[.B29] -> 0,00% | C30: =of:=[.F29]*[.B29] -> 0 € | D30: =of:=IF([.F30]=0;0;[.E30]-[.C30]) -> 0 € | E30: =of:=IF([.F30]<=0;0;[.E29]) -> 0 € | F30: =of:=IF([.F29]-[.D29]>0;[.F29]-[.D29];0) -> 0 €
A31: 27. | B31: =of:=[.B30] -> 0,00% | C31: =of:=[.F30]*[.B30] -> 0 € | D31: =of:=IF([.F31]=0;0;[.E31]-[.C31]) -> 0 € | E31: =of:=IF([.F31]<=0;0;[.E30]) -> 0 € | F31: =of:=IF([.F30]-[.D30]>0;[.F30]-[.D30];0) -> 0 €
A32: 28. | B32: =of:=[.B31] -> 0,00% | C32: =of:=[.F31]*[.B31] -> 0 € | D32: =of:=IF([.F32]=0;0;[.E32]-[.C32]) -> 0 € | E32: =of:=IF([.F32]<=0;0;[.E31]) -> 0 € | F32: =of:=IF([.F31]-[.D31]>0;[.F31]-[.D31];0) -> 0 €
A33: 29. | B33: =of:=[.B32] -> 0,00% | C33: =of:=[.F32]*[.B32] -> 0 € | D33: =of:=IF([.F33]=0;0;[.E33]-[.C33]) -> 0 € | E33: =of:=IF([.F33]<=0;0;[.E32]) -> 0 € | F33: =of:=IF([.F32]-[.D32]>0;[.F32]-[.D32];0) -> 0 €
A34: 30. | B34: =of:=[.B33] -> 0,00% | C34: =of:=[.F33]*[.B33] -> 0 € | D34: =of:=IF([.F34]=0;0;[.E34]-[.C34]) -> 0 € | E34: =of:=IF([.F34]<=0;0;[.E33]) -> 0 € | F34: =of:=IF([.F33]-[.D33]>0;[.F33]-[.D33];0) -> 0 €
A35: 31. | B35: =of:=[.B34] -> 0,00% | C35: =of:=[.F34]*[.B34] -> 0 € | D35: =of:=IF([.F35]=0;0;[.E35]-[.C35]) -> 0 € | E35: =of:=IF([.F35]<=0;0;[.E34]) -> 0 € | F35: =of:=IF([.F34]-[.D34]>0;[.F34]-[.D34];0) -> 0 €
A36: 32. | B36: =of:=[.B35] -> 0,00% | C36: =of:=[.F35]*[.B35] -> 0 € | D36: =of:=IF([.F36]=0;0;[.E36]-[.C36]) -> 0 € | E36: =of:=IF([.F36]<=0;0;[.E35]) -> 0 € | F36: =of:=IF([.F35]-[.D35]>0;[.F35]-[.D35];0) -> 0 €
A37: 33. | B37: =of:=[.B36] -> 0,00% | C37: =of:=[.F36]*[.B36] -> 0 € | D37: =of:=IF([.F37]=0;0;[.E37]-[.C37]) -> 0 € | E37: =of:=IF([.F37]<=0;0;[.E36]) -> 0 € | F37: =of:=IF([.F36]-[.D36]>0;[.F36]-[.D36];0) -> 0 €
A38: 34. | B38: =of:=[.B37] -> 0,00% | C38: =of:=[.F37]*[.B37] -> 0 € | D38: =of:=IF([.F38]=0;0;[.E38]-[.C38]) -> 0 € | E38: =of:=IF([.F38]<=0;0;[.E37]) -> 0 € | F38: =of:=IF([.F37]-[.D37]>0;[.F37]-[.D37];0) -> 0 €
A39: 35. | B39: =of:=[.B38] -> 0,00% | C39: =of:=[.F38]*[.B38] -> 0 € | D39: =of:=IF([.F39]=0;0;[.E39]-[.C39]) -> 0 € | E39: =of:=IF([.F39]<=0;0;[.E38]) -> 0 € | F39: =of:=IF([.F38]-[.D38]>0;[.F38]-[.D38];0) -> 0 €
A40: 36. | B40: =of:=[.B39] -> 0,00% | C40: =of:=[.F39]*[.B39] -> 0 € | D40: =of:=IF([.F40]=0;0;[.E40]-[.C40]) -> 0 € | E40: =of:=IF([.F40]<=0;0;[.E39]) -> 0 € | F40: =of:=IF([.F39]-[.D39]>0;[.F39]-[.D39];0) -> 0 €

Sheet TIL_B2
A1: =of:=[$Finanzierung.$D$19] -> Bank4 | B1: =of:=Bank2 -> 0 € | D1: Zins | E1: =of:=ZinsBank2 -> 0,00 %
A3: Datum | B3: Zinsen | C3: Zinsen/a | D3: Tilgung/a | E3: Annuität/a | F3: Restschuld
B4: =of:=ZinsBank2 -> 0,00% | F4: =of:=Bank2 -> 0 €
A5: 1. | B5: =of:=[.B4] -> 0,00% | C5: =of:=[.F4]*[.B4] -> 0 € | D5: =of:=TIL4*12 -> 0 € | E5: =of:=[.$C$5]+[.$D$5] -> 0 € | F5: =of:=[.F4]-[.D5] -> 0 €
A6: 2. | B6: =of:=[.B5] -> 0,00% | C6: =of:=[.F5]*[.B5] -> 0 € | D6: =of:=[.E6]-[.C6] -> 0 € | E6: =of:=[.$C$5]+[.$D$5] -> 0 € | F6: =of:=[.F5]-[.D5] -> 0 €
A7: 3. | B7: =of:=[.B6] -> 0,00% | C7: =of:=[.F6]*[.B6] -> 0 € | D7: =of:=[.E7]-[.C7] -> 0 € | E7: =of:=[.$C$5]+[.$D$5] -> 0 € | F7: =of:=[.F6]-[.D6] -> 0 €
A8: 4. | B8: =of:=[.B7] -> 0,00% | C8: =of:=[.F7]*[.B7] -> 0 € | D8: =of:=[.E8]-[.C8] -> 0 € | E8: =of:=[.$C$5]+[.$D$5] -> 0 € | F8: =of:=[.F7]-[.D7] -> 0 €
A9: 5. | B9: =of:=[.B8] -> 0,00% | C9: =of:=[.F8]*[.B8] -> 0 € | D9: =of:=[.E9]-[.C9] -> 0 € | E9: =of:=[.$C$5]+[.$D$5] -> 0 € | F9: =of:=[.F8]-[.D8] -> 0 €
A10: 6. | B10: =of:=[.B9] -> 0,00% | C10: =of:=[.F9]*[.B9] -> 0 € | D10: =of:=[.E10]-[.C10] -> 0 € | E10: =of:=[.$C$5]+[.$D$5] -> 0 € | F10: =of:=[.F9]-[.D9] -> 0 €
A11: 7. | B11: =of:=[.B10] -> 0,00% | C11: =of:=[.F10]*[.B10] -> 0 € | D11: =of:=[.E11]-[.C11] -> 0 € | E11: =of:=[.$C$5]+[.$D$5] -> 0 € | F11: =of:=[.F10]-[.D10] -> 0 €
A12: 8. | B12: =of:=[.B11] -> 0,00% | C12: =of:=[.F11]*[.B11] -> 0 € | D12: =of:=[.E12]-[.C12] -> 0 € | E12: =of:=[.$C$5]+[.$D$5] -> 0 € | F12: =of:=[.F11]-[.D11] -> 0 €
A13: 9. | B13: =of:=[.B12] -> 0,00% | C13: =of:=[.F12]*[.B12] -> 0 € | D13: =of:=IF([.F13]=0;0;[.E13]-[.C13]) -> 0 € | E13: =of:=IF([.F13]<=0;0;[.E12]) -> 0 € | F13: =of:=IF([.F12]-[.D12]>0;[.F12]-[.D12];0) -> 0 €
A14: 10. | B14: =of:=[.B13] -> 0,00% | C14: =of:=[.F13]*[.B13] -> 0 € | D14: =of:=IF([.F14]=0;0;[.E14]-[.C14]) -> 0 € | E14: =of:=IF([.F14]<=0;0;[.E13]) -> 0 € | F14: =of:=IF([.F13]-[.D13]>0;[.F13]-[.D13];0) -> 0 €
A15: 11. | B15: =of:=[.B14] -> 0,00% | C15: =of:=[.F14]*[.B14] -> 0 € | D15: =of:=IF([.F15]=0;0;[.E15]-[.C15]) -> 0 € | E15: =of:=IF([.F15]<=0;0;[.E14]) -> 0 € | F15: =of:=IF([.F14]-[.D14]>0;[.F14]-[.D14];0) -> 0 €
A16: 12. | B16: =of:=[.B15] -> 0,00% | C16: =of:=[.F15]*[.B15] -> 0 € | D16: =of:=IF([.F16]=0;0;[.E16]-[.C16]) -> 0 € | E16: =of:=IF([.F16]<=0;0;[.E15]) -> 0 € | F16: =of:=IF([.F15]-[.D15]>0;[.F15]-[.D15];0) -> 0 €
A17: 13. | B17: =of:=[.B16] -> 0,00% | C17: =of:=[.F16]*[.B16] -> 0 € | D17: =of:=IF([.F17]=0;0;[.E17]-[.C17]) -> 0 € | E17: =of:=IF([.F17]<=0;0;[.E16]) -> 0 € | F17: =of:=IF([.F16]-[.D16]>0;[.F16]-[.D16];0) -> 0 €
A18: 14. | B18: =of:=[.B17] -> 0,00% | C18: =of:=[.F17]*[.B17] -> 0 € | D18: =of:=IF([.F18]=0;0;[.E18]-[.C18]) -> 0 € | E18: =of:=IF([.F18]<=0;0;[.E17]) -> 0 € | F18: =of:=IF([.F17]-[.D17]>0;[.F17]-[.D17];0) -> 0 €
A19: 15. | B19: =of:=[.B18] -> 0,00% | C19: =of:=[.F18]*[.B18] -> 0 € | D19: =of:=IF([.F19]=0;0;[.E19]-[.C19]) -> 0 € | E19: =of:=IF([.F19]<=0;0;[.E18]) -> 0 € | F19: =of:=IF([.F18]-[.D18]>0;[.F18]-[.D18];0) -> 0 €
A20: 16. | B20: =of:=[.B19] -> 0,00% | C20: =of:=[.F19]*[.B19] -> 0 € | D20: =of:=IF([.F20]=0;0;[.E20]-[.C20]) -> 0 € | E20: =of:=IF([.F20]<=0;0;[.E19]) -> 0 € | F20: =of:=IF([.F19]-[.D19]>0;[.F19]-[.D19];0) -> 0 €
A21: 17. | B21: =of:=[.B20] -> 0,00% | C21: =of:=[.F20]*[.B20] -> 0 € | D21: =of:=IF([.F21]=0;0;[.E21]-[.C21]) -> 0 € | E21: =of:=IF([.F21]<=0;0;[.E20]) -> 0 € | F21: =of:=IF([.F20]-[.D20]>0;[.F20]-[.D20];0) -> 0 €
A22: 18. | B22: =of:=[.B21] -> 0,00% | C22: =of:=[.F21]*[.B21] -> 0 € | D22: =of:=IF([.F22]=0;0;[.E22]-[.C22]) -> 0 € | E22: =of:=IF([.F22]<=0;0;[.E21]) -> 0 € | F22: =of:=IF([.F21]-[.D21]>0;[.F21]-[.D21];0) -> 0 €
A23: 19. | B23: =of:=[.B22] -> 0,00% | C23: =of:=[.F22]*[.B22] -> 0 € | D23: =of:=IF([.F23]=0;0;[.E23]-[.C23]) -> 0 € | E23: =of:=IF([.F23]<=0;0;[.E22]) -> 0 € | F23: =of:=IF([.F22]-[.D22]>0;[.F22]-[.D22];0) -> 0 €
A24: 20. | B24: =of:=[.B23] -> 0,00% | C24: =of:=[.F23]*[.B23] -> 0 € | D24: =of:=IF([.F24]=0;0;[.E24]-[.C24]) -> 0 € | E24: =of:=IF([.F24]<=0;0;[.E23]) -> 0 € | F24: =of:=IF([.F23]-[.D23]>0;[.F23]-[.D23];0) -> 0 €
A25: 21. | B25: =of:=[.B24] -> 0,00% | C25: =of:=[.F24]*[.B24] -> 0 € | D25: =of:=IF([.F25]=0;0;[.E25]-[.C25]) -> 0 € | E25: =of:=IF([.F25]<=0;0;[.E24]) -> 0 € | F25: =of:=IF([.F24]-[.D24]>0;[.F24]-[.D24];0) -> 0 €
A26: 22. | B26: =of:=[.B25] -> 0,00% | C26: =of:=[.F25]*[.B25] -> 0 € | D26: =of:=IF([.F26]=0;0;[.E26]-[.C26]) -> 0 € | E26: =of:=IF([.F26]<=0;0;[.E25]) -> 0 € | F26: =of:=IF([.F25]-[.D25]>0;[.F25]-[.D25];0) -> 0 €
A27: 23. | B27: =of:=[.B26] -> 0,00% | C27: =of:=[.F26]*[.B26] -> 0 € | D27: =of:=IF([.F27]=0;0;[.E27]-[.C27]) -> 0 € | E27: =of:=IF([.F27]<=0;0;[.E26]) -> 0 € | F27: =of:=IF([.F26]-[.D26]>0;[.F26]-[.D26];0) -> 0 €
A28: 24. | B28: =of:=[.B27] -> 0,00% | C28: =of:=[.F27]*[.B27] -> 0 € | D28: =of:=IF([.F28]=0;0;[.E28]-[.C28]) -> 0 € | E28: =of:=IF([.F28]<=0;0;[.E27]) -> 0 € | F28: =of:=IF([.F27]-[.D27]>0;[.F27]-[.D27];0) -> 0 €
A29: 25. | B29: =of:=[.B28] -> 0,00% | C29: =of:=[.F28]*[.B28] -> 0 € | D29: =of:=IF([.F29]=0;0;[.E29]-[.C29]) -> 0 € | E29: =of:=IF([.F29]<=0;0;[.E28]) -> 0 € | F29: =of:=IF([.F28]-[.D28]>0;[.F28]-[.D28];0) -> 0 €
A30: 26. | B30: =of:=[.B29] -> 0,00% | C30: =of:=[.F29]*[.B29] -> 0 € | D30: =of:=IF([.F30]=0;0;[.E30]-[.C30]) -> 0 € | E30: =of:=IF([.F30]<=0;0;[.E29]) -> 0 € | F30: =of:=IF([.F29]-[.D29]>0;[.F29]-[.D29];0) -> 0 €
A31: 27. | B31: =of:=[.B30] -> 0,00% | C31: =of:=[.F30]*[.B30] -> 0 € | D31: =of:=IF([.F31]=0;0;[.E31]-[.C31]) -> 0 € | E31: =of:=IF([.F31]<=0;0;[.E30]) -> 0 € | F31: =of:=IF([.F30]-[.D30]>0;[.F30]-[.D30];0) -> 0 €
A32: 28. | B32: =of:=[.B31] -> 0,00% | C32: =of:=[.F31]*[.B31] -> 0 € | D32: =of:=IF([.F32]=0;0;[.E32]-[.C32]) -> 0 € | E32: =of:=IF([.F32]<=0;0;[.E31]) -> 0 € | F32: =of:=IF([.F31]-[.D31]>0;[.F31]-[.D31];0) -> 0 €
A33: 29. | B33: =of:=[.B32] -> 0,00% | C33: =of:=[.F32]*[.B32] -> 0 € | D33: =of:=IF([.F33]=0;0;[.E33]-[.C33]) -> 0 € | E33: =of:=IF([.F33]<=0;0;[.E32]) -> 0 € | F33: =of:=IF([.F32]-[.D32]>0;[.F32]-[.D32];0) -> 0 €
A34: 30. | B34: =of:=[.B33] -> 0,00% | C34: =of:=[.F33]*[.B33] -> 0 € | D34: =of:=IF([.F34]=0;0;[.E34]-[.C34]) -> 0 € | E34: =of:=IF([.F34]<=0;0;[.E33]) -> 0 € | F34: =of:=IF([.F33]-[.D33]>0;[.F33]-[.D33];0) -> 0 €
A35: 31. | B35: =of:=[.B34] -> 0,00% | C35: =of:=[.F34]*[.B34] -> 0 € | D35: =of:=IF([.F35]=0;0;[.E35]-[.C35]) -> 0 € | E35: =of:=IF([.F35]<=0;0;[.E34]) -> 0 € | F35: =of:=IF([.F34]-[.D34]>0;[.F34]-[.D34];0) -> 0 €
A36: 32. | B36: =of:=[.B35] -> 0,00% | C36: =of:=[.F35]*[.B35] -> 0 € | D36: =of:=IF([.F36]=0;0;[.E36]-[.C36]) -> 0 € | E36: =of:=IF([.F36]<=0;0;[.E35]) -> 0 € | F36: =of:=IF([.F35]-[.D35]>0;[.F35]-[.D35];0) -> 0 €
A37: 33. | B37: =of:=[.B36] -> 0,00% | C37: =of:=[.F36]*[.B36] -> 0 € | D37: =of:=IF([.F37]=0;0;[.E37]-[.C37]) -> 0 € | E37: =of:=IF([.F37]<=0;0;[.E36]) -> 0 € | F37: =of:=IF([.F36]-[.D36]>0;[.F36]-[.D36];0) -> 0 €
A38: 34. | B38: =of:=[.B37] -> 0,00% | C38: =of:=[.F37]*[.B37] -> 0 € | D38: =of:=IF([.F38]=0;0;[.E38]-[.C38]) -> 0 € | E38: =of:=IF([.F38]<=0;0;[.E37]) -> 0 € | F38: =of:=IF([.F37]-[.D37]>0;[.F37]-[.D37];0) -> 0 €
A39: 35. | B39: =of:=[.B38] -> 0,00% | C39: =of:=[.F38]*[.B38] -> 0 € | D39: =of:=IF([.F39]=0;0;[.E39]-[.C39]) -> 0 € | E39: =of:=IF([.F39]<=0;0;[.E38]) -> 0 € | F39: =of:=IF([.F38]-[.D38]>0;[.F38]-[.D38];0) -> 0 €
A40: 36. | B40: =of:=[.B39] -> 0,00% | C40: =of:=[.F39]*[.B39] -> 0 € | D40: =of:=IF([.F40]=0;0;[.E40]-[.C40]) -> 0 € | E40: =of:=IF([.F40]<=0;0;[.E39]) -> 0 € | F40: =of:=IF([.F39]-[.D39]>0;[.F39]-[.D39];0) -> 0 €

Sheet Verlauf
B1: Annuität | D1: m. EHZ | E1: Ohne EHZ | H1: Zinsen | J1: Eigenheim- | M1: Tilgung
B2: Zinsen | C2: Tilgung | D2: Belast./Mon. | E2: Belast/Mon. | F2: Hyp1 | G2: Hyp2 | H2: Bank1 | I2: Bank2 | J2: zulage | K2: Hyp1 | L2: Hyp2 | M2: Bank1 | N2: Bank2
A3: 1. | B3: =of:=SUM([.F3:.I3]) -> 2.767 € | C3: =of:=SUM([.K3:.N3]) -> 5.620 € | D3: =of:=([.B3]+[.C3])/12+[.J3] -> 698,92 € | E3: =of:=([.B3]+[.C3])/12 -> 698,92 € | F3: =of:=[$TILHyp1.C5] -> 1.930 € | G3: =of:=[$TILHyp2.C5] -> 837 € | H3: =of:=[$TIL_B1.C5] -> 0 € | I3: =of:=[$TIL_B2.C5] -> 0 € | J3: =of:=([Finanzierung.K31])*-1 -> 0 € | K3: =of:=[$TILHyp1.D5] -> 5.000 € | L3: =of:=[$TILHyp2.D5] -> 620 € | M3: =of:=[$TIL_B1.D5] -> 0 € | N3: =of:=[$TIL_B2.D5] -> 0 €
A4: 2. | B4: =of:=SUM([.F4:.I4]) -> 2.671 € | C4: =of:=SUM([.K4:.N4]) -> 5.717 € | D4: =of:=([.B4]+[.C4])/12+[.J3] -> 698,92 € | E4: =of:=([.B4]+[.C4])/12 -> 698,92 € | F4: =of:=[$TILHyp1.C6] -> 1.834 € | G4: =of:=[$TILHyp2.C6] -> 837 € | H4: =of:=[$TIL_B1.C6] -> 0 € | I4: =of:=[$TIL_B2.C6] -> 0 € | J4: =of:=([Finanzierung.K31])*-1 -> 0 € | K4: =of:=[$TILHyp1.D6] -> 5.097 € | L4: =of:=[$TILHyp2.D6] -> 620 € | M4: =of:=[$TIL_B1.D6] -> 0 € | N4: =of:=[$TIL_B2.D6] -> 0 €
A5: 3. | B5: =of:=SUM([.F5:.I5]) -> 2.557 € | C5: =of:=SUM([.K5:.N5]) -> 5.830 € | D5: =of:=([.B5]+[.C5])/12+[.J3] -> 698,92 € | E5: =of:=([.B5]+[.C5])/12 -> 698,92 € | F5: =of:=[$TILHyp1.C7] -> 1.737 € | G5: =of:=[$TILHyp2.C7] -> 820 € | H5: =of:=[$TIL_B1.C7] -> 0 € | I5: =of:=[$TIL_B2.C7] -> 0 € | J5: =of:=[.J3] -> 0 € | K5: =of:=[$TILHyp1.D7] -> 5.193 € | L5: =of:=[$TILHyp2.D7] -> 637 € | M5: =of:=[$TIL_B1.D7] -> 0 € | N5: =of:=[$TIL_B2.D7] -> 0 €
A6: 4. | B6: =of:=SUM([.F6:.I6]) -> 2.442 € | C6: =of:=SUM([.K6:.N6]) -> 5.945 € | D6: =of:=([.B6]+[.C6])/12+[.J3] -> 698,92 € | E6: =of:=([.B6]+[.C6])/12 -> 698,92 € | F6: =of:=[$TILHyp1.C8] -> 1.639 € | G6: =of:=[$TILHyp2.C8] -> 804 € | H6: =of:=[$TIL_B1.C8] -> 0 € | I6: =of:=[$TIL_B2.C8] -> 0 € | J6: =of:=[.J3] -> 0 € | K6: =of:=[$TILHyp1.D8] -> 5.291 € | L6: =of:=[$TILHyp2.D8] -> 653 € | M6: =of:=[$TIL_B1.D8] -> 0 € | N6: =of:=[$TIL_B2.D8] -> 0 € | P6: =of:=[$Finanzierung.$K$23] -> 416.6666667 | Q6: =of:=[$Finanzierung.$H$16] -> 1,93%
A7: 5. | B7: =of:=SUM([.F7:.I7]) -> 2.325 € | C7: =of:=SUM([.K7:.N7]) -> 6.062 € | D7: =of:=([.B7]+[.C7])/12+[.J3] -> 698,92 € | E7: =of:=([.B7]+[.C7])/12 -> 698,92 € | F7: =of:=[$TILHyp1.C9] -> 1.538 € | G7: =of:=[$TILHyp2.C9] -> 786 € | H7: =of:=[$TIL_B1.C9] -> 0 € | I7: =of:=[$TIL_B2.C9] -> 0 € | J7: =of:=[.J3] -> 0 € | K7: =of:=[$TILHyp1.D9] -> 5.392 € | L7: =of:=[$TILHyp2.D9] -> 671 € | M7: =of:=[$TIL_B1.D9] -> 0 € | N7: =of:=[$TIL_B2.D9] -> 0 € | P7: =of:=[$Finanzierung.$K$24] -> 52 € | Q7: =of:=[$Finanzierung.$H$17] -> 2,70%
A8: 6. | B8: =of:=SUM([.F8:.I8]) -> 2.205 € | C8: =of:=SUM([.K8:.N8]) -> 6.182 € | D8: =of:=([.B8]+[.C8])/12+[.J3] -> 698,92 € | E8: =of:=([.B8]+[.C8])/12 -> 698,92 € | F8: =of:=[$TILHyp1.C10] -> 1.436 € | G8: =of:=[$TILHyp2.C10] -> 769 € | H8: =of:=[$TIL_B1.C10] -> 0 € | I8: =of:=[$TIL_B2.C10] -> 0 € | J8: =of:=[.J3] -> 0 € | K8: =of:=[$TILHyp1.D10] -> 5.494 € | L8: =of:=[$TILHyp2.D10] -> 688 € | M8: =of:=[$TIL_B1.D10] -> 0 € | N8: =of:=[$TIL_B2.D10] -> 0 € | P8: =of:=[$Finanzierung.$K$24] -> 52 € | Q8: =of:=[$Finanzierung.$H$18] -> 0,00%
A9: 7. | B9: =of:=SUM([.F9:.I9]) -> 2.083 € | C9: =of:=SUM([.K9:.N9]) -> 6.304 € | D9: =of:=([.B9]+[.C9])/12+[.J3] -> 698,92 € | E9: =of:=([.B9]+[.C9])/12 -> 698,92 € | F9: =of:=[$TILHyp1.C11] -> 1.332 € | G9: =of:=[$TILHyp2.C11] -> 751 € | H9: =of:=[$TIL_B1.C11] -> 0 € | I9: =of:=[$TIL_B2.C11] -> 0 € | J9: =of:=[.J3] -> 0 € | K9: =of:=[$TILHyp1.D11] -> 5.598 € | L9: =of:=[$TILHyp2.D11] -> 706 € | M9: =of:=[$TIL_B1.D11] -> 0 € | N9: =of:=[$TIL_B2.D11] -> 0 €
A10: 8. | B10: =of:=SUM([.F10:.I10]) -> 1.958 € | C10: =of:=SUM([.K10:.N10]) -> 6.429 € | D10: =of:=([.B10]+[.C10])/12+[.J3] -> 698,92 € | E10: =of:=([.B10]+[.C10])/12 -> 698,92 € | F10: =of:=[$TILHyp1.C12] -> 1.226 € | G10: =of:=[$TILHyp2.C12] -> 732 € | H10: =of:=[$TIL_B1.C12] -> 0 € | I10: =of:=[$TIL_B2.C12] -> 0 € | J10: =of:=[.J3] -> 0 € | K10: =of:=[$TILHyp1.D12] -> 5.704 € | L10: =of:=[$TILHyp2.D12] -> 725 € | M10: =of:=[$TIL_B1.D12] -> 0 € | N10: =of:=[$TIL_B2.D12] -> 0 €
A11: 9. | B11: =of:=SUM([.F11:.I11]) -> 1.831 € | C11: =of:=SUM([.K11:.N11]) -> 6.556 € | D11: =of:=([.B11]+[.C11])/12 -> 698,92 € | E11: =of:=([.B11]+[.C11])/12 -> 698,92 € | F11: =of:=[$TILHyp1.C13] -> 1.118 € | G11: =of:=[$TILHyp2.C13] -> 713 € | H11: =of:=[$TIL_B1.C13] -> 0 € | I11: =of:=[$TIL_B2.C13] -> 0 € | K11: =of:=[$TILHyp1.D13] -> 5.812 € | L11: =of:=[$TILHyp2.D13] -> 744 € | M11: =of:=[$TIL_B1.D13] -> 0 € | N11: =of:=[$TIL_B2.D13] -> 0 €
A12: 10. | B12: =of:=SUM([.F12:.I12]) -> 1.701 € | C12: =of:=SUM([.K12:.N12]) -> 6.686 € | D12: =of:=([.B12]+[.C12])/12 -> 698,92 € | E12: =of:=([.B12]+[.C12])/12 -> 698,92 € | F12: =of:=[$TILHyp1.C14] -> 1.008 € | G12: =of:=[$TILHyp2.C14] -> 693 € | H12: =of:=[$TIL_B1.C14] -> 0 € | I12: =of:=[$TIL_B2.C14] -> 0 € | K12: =of:=[$TILHyp1.D14] -> 5.922 € | L12: =of:=[$TILHyp2.D14] -> 764 € | M12: =of:=[$TIL_B1.D14] -> 0 € | N12: =of:=[$TIL_B2.D14] -> 0 €
A13: 11. | B13: =of:=SUM([.F13:.I13]) -> 1.569 € | C13: =of:=SUM([.K13:.N13]) -> 6.818 € | D13: =of:=([.B13]+[.C13])/12 -> 698,92 € | E13: =of:=([.B13]+[.C13])/12 -> 698,92 € | F13: =of:=[$TILHyp1.C15] -> 896 € | G13: =of:=[$TILHyp2.C15] -> 673 € | H13: =of:=[$TIL_B1.C15] -> 0 € | I13: =of:=[$TIL_B2.C15] -> 0 € | K13: =of:=[$TILHyp1.D15] -> 6.034 € | L13: =of:=[$TILHyp2.D15] -> 784 € | M13: =of:=[$TIL_B1.D15] -> 0 € | N13: =of:=[$TIL_B2.D15] -> 0 €
A14: 12. | B14: =of:=SUM([.F14:.I14]) -> 1.507 € | C14: =of:=SUM([.K14:.N14]) -> 6.880 € | D14: =of:=([.B14]+[.C14])/12 -> 698,92 € | E14: =of:=([.B14]+[.C14])/12 -> 698,92 € | F14: =of:=[$TILHyp1.C16] -> 782 € | G14: =of:=[$TILHyp2.C16] -> 725 € | H14: =of:=[$TIL_B1.C16] -> 0 € | I14: =of:=[$TIL_B2.C16] -> 0 € | K14: =of:=[$TILHyp1.D16] -> 6.148 € | L14: =of:=[$TILHyp2.D16] -> 732 € | M14: =of:=[$TIL_B1.D16] -> 0 € | N14: =of:=[$TIL_B2.D16] -> 0 €
A15: 13. | B15: =of:=SUM([.F15:.I15]) -> 1.367 € | C15: =of:=SUM([.K15:.N15]) -> 7.020 € | D15: =of:=([.B15]+[.C15])/12 -> 698,92 € | E15: =of:=([.B15]+[.C15])/12 -> 698,92 € | F15: =of:=[$TILHyp1.C17] -> 665 € | G15: =of:=[$TILHyp2.C17] -> 702 € | H15: =of:=[$TIL_B1.C17] -> 0 € | I15: =of:=[$TIL_B2.C17] -> 0 € | K15: =of:=[$TILHyp1.D17] -> 6.265 € | L15: =of:=[$TILHyp2.D17] -> 755 € | M15: =of:=[$TIL_B1.D17] -> 0 € | N15: =of:=[$TIL_B2.D17] -> 0 €
A16: 14. | B16: =of:=SUM([.F16:.I16]) -> 1.226 € | C16: =of:=SUM([.K16:.N16]) -> 7.161 € | D16: =of:=([.B16]+[.C16])/12 -> 698,92 € | E16: =of:=([.B16]+[.C16])/12 -> 698,92 € | F16: =of:=[$TILHyp1.C18] -> 546 € | G16: =of:=[$TILHyp2.C18] -> 680 € | H16: =of:=[$TIL_B1.C18] -> 0 € | I16: =of:=[$TIL_B2.C18] -> 0 € | K16: =of:=[$TILHyp1.D18] -> 6.384 € | L16: =of:=[$TILHyp2.D18] -> 777 € | M16: =of:=[$TIL_B1.D18] -> 0 € | N16: =of:=[$TIL_B2.D18] -> 0 €
A17: 15. | B17: =of:=SUM([.F17:.I17]) -> 1.083 € | C17: =of:=SUM([.K17:.N17]) -> 7.304 € | D17: =of:=([.B17]+[.C17])/12 -> 698,92 € | E17: =of:=([.B17]+[.C17])/12 -> 698,92 € | F17: =of:=[$TILHyp1.C19] -> 426 € | G17: =of:=[$TILHyp2.C19] -> 657 € | H17: =of:=[$TIL_B1.C19] -> 0 € | I17: =of:=[$TIL_B2.C19] -> 0 € | K17: =of:=[$TILHyp1.D19] -> 6.504 € | L17: =of:=[$TILHyp2.D19] -> 800 € | M17: =of:=[$TIL_B1.D19] -> 0 € | N17: =of:=[$TIL_B2.D19] -> 0 €
A18: 16. | B18: =of:=SUM([.F18:.I18]) -> 936 € | C18: =of:=SUM([.K18:.N18]) -> 7.451 € | D18: =of:=([.B18]+[.C18])/12 -> 698,92 € | E18: =of:=([.B18]+[.C18])/12 -> 698,92 € | F18: =of:=[$TILHyp1.C20] -> 302 € | G18: =of:=[$TILHyp2.C20] -> 634 € | H18: =of:=[$TIL_B1.C20] -> 0 € | I18: =of:=[$TIL_B2.C20] -> 0 € | K18: =of:=[$TILHyp1.D20] -> 6.628 € | L18: =of:=[$TILHyp2.D20] -> 823 € | M18: =of:=[$TIL_B1.D20] -> 0 € | N18: =of:=[$TIL_B2.D20] -> 0 €
A19: 17. | B19: =of:=SUM([.F19:.I19]) -> 1.159 € | C19: =of:=SUM([.K19:.N19]) -> 7.228 € | D19: =of:=([.B19]+[.C19])/12 -> 698,92 € | E19: =of:=([.B19]+[.C19])/12 -> 698,92 € | F19: =of:=[$TILHyp1.C21] -> 550 € | G19: =of:=[$TILHyp2.C21] -> 610 € | H19: =of:=[$TIL_B1.C21] -> 0 € | I19: =of:=[$TIL_B2.C21] -> 0 € | K19: =of:=[$TILHyp1.D21] -> 6.380 € | L19: =of:=[$TILHyp2.D21] -> 847 € | M19: =of:=[$TIL_B1.D21] -> 0 € | N19: =of:=[$TIL_B2.D21] -> 0 €
A20: 18. | B20: =of:=SUM([.F20:.I20]) -> 737 € | C20: =of:=SUM([.K20:.N20]) -> 872 € | D20: =of:=([.B20]+[.C20])/12 -> 134,10 € | E20: =of:=([.B20]+[.C20])/12 -> 134,10 € | F20: =of:=[$TILHyp1.C22] -> 152 € | G20: =of:=[$TILHyp2.C22] -> 585 € | H20: =of:=[$TIL_B1.C22] -> 0 € | I20: =of:=[$TIL_B2.C22] -> 0 € | K20: =of:=[$TILHyp1.D22] -> 0 € | L20: =of:=[$TILHyp2.D22] -> 872 € | M20: =of:=[$TIL_B1.D22] -> 0 € | N20: =of:=[$TIL_B2.D22] -> 0 €
A21: 19. | B21: =of:=SUM([.F21:.I21]) -> 560 € | C21: =of:=SUM([.K21:.N21]) -> 897 € | D21: =of:=([.B21]+[.C21])/12 -> 121,42 € | E21: =of:=([.B21]+[.C21])/12 -> 121,42 € | F21: =of:=[$TILHyp1.C23] -> 0 € | G21: =of:=[$TILHyp2.C23] -> 560 € | H21: =of:=[$TIL_B1.C23] -> 0 € | I21: =of:=[$TIL_B2.C23] -> 0 € | K21: =of:=[$TILHyp1.D23] -> 0 € | L21: =of:=[$TILHyp2.D23] -> 897 € | M21: =of:=[$TIL_B1.D23] -> 0 € | N21: =of:=[$TIL_B2.D23] -> 0 €
A22: 20. | B22: =of:=SUM([.F22:.I22]) -> 533 € | C22: =of:=SUM([.K22:.N22]) -> 924 € | D22: =of:=([.B22]+[.C22])/12 -> 121,42 € | E22: =of:=([.B22]+[.C22])/12 -> 121,42 € | F22: =of:=[$TILHyp1.C24] -> 0 € | G22: =of:=[$TILHyp2.C24] -> 533 € | H22: =of:=[$TIL_B1.C24] -> 0 € | I22: =of:=[$TIL_B2.C24] -> 0 € | K22: =of:=[$TILHyp1.D24] -> 0 € | L22: =of:=[$TILHyp2.D24] -> 924 € | M22: =of:=[$TIL_B1.D24] -> 0 € | N22: =of:=[$TIL_B2.D24] -> 0 €
A23: 21. | B23: =of:=SUM([.F23:.I23]) -> 507 € | C23: =of:=SUM([.K23:.N23]) -> 950 € | D23: =of:=([.B23]+[.C23])/12 -> 121,42 € | E23: =of:=([.B23]+[.C23])/12 -> 121,42 € | F23: =of:=[$TILHyp1.C25] -> 0 € | G23: =of:=[$TILHyp2.C25] -> 507 € | H23: =of:=[$TIL_B1.C25] -> 0 € | I23: =of:=[$TIL_B2.C25] -> 0 € | K23: =of:=[$TILHyp1.D25] -> 0 € | L23: =of:=[$TILHyp2.D25] -> 950 € | M23: =of:=[$TIL_B1.D25] -> 0 € | N23: =of:=[$TIL_B2.D25] -> 0 €
A24: 22. | B24: =of:=SUM([.F24:.I24]) -> 479 € | C24: =of:=SUM([.K24:.N24]) -> 978 € | D24: =of:=([.B24]+[.C24])/12 -> 121,42 € | E24: =of:=([.B24]+[.C24])/12 -> 121,42 € | F24: =of:=[$TILHyp1.C26] -> 0 € | G24: =of:=[$TILHyp2.C26] -> 479 € | H24: =of:=[$TIL_B1.C26] -> 0 € | I24: =of:=[$TIL_B2.C26] -> 0 € | K24: =of:=[$TILHyp1.D26] -> 0 € | L24: =of:=[$TILHyp2.D26] -> 978 € | M24: =of:=[$TIL_B1.D26] -> 0 € | N24: =of:=[$TIL_B2.D26] -> 0 €
A25: 23. | B25: =of:=SUM([.F25:.I25]) -> 450 € | C25: =of:=SUM([.K25:.N25]) -> 1.007 € | D25: =of:=([.B25]+[.C25])/12 -> 121,42 € | E25: =of:=([.B25]+[.C25])/12 -> 121,42 € | F25: =of:=[$TILHyp1.C27] -> 0 € | G25: =of:=[$TILHyp2.C27] -> 450 € | H25: =of:=[$TIL_B1.C27] -> 0 € | I25: =of:=[$TIL_B2.C27] -> 0 € | K25: =of:=[$TILHyp1.D27] -> 0 € | L25: =of:=[$TILHyp2.D27] -> 1.007 € | M25: =of:=[$TIL_B1.D27] -> 0 € | N25: =of:=[$TIL_B2.D27] -> 0 €
A26: 24. | B26: =of:=SUM([.F26:.I26]) -> 421 € | C26: =of:=SUM([.K26:.N26]) -> 1.036 € | D26: =of:=([.B26]+[.C26])/12 -> 121,42 € | E26: =of:=([.B26]+[.C26])/12 -> 121,42 € | F26: =of:=[$TILHyp1.C28] -> 0 € | G26: =of:=[$TILHyp2.C28] -> 421 € | H26: =of:=[$TIL_B1.C28] -> 0 € | I26: =of:=[$TIL_B2.C28] -> 0 € | K26: =of:=[$TILHyp1.D28] -> 0 € | L26: =of:=[$TILHyp2.D28] -> 1.036 € | M26: =of:=[$TIL_B1.D28] -> 0 € | N26: =of:=[$TIL_B2.D28] -> 0 €
A27: 25. | B27: =of:=SUM([.F27:.I27]) -> 391 € | C27: =of:=SUM([.K27:.N27]) -> 1.066 € | D27: =of:=([.B27]+[.C27])/12 -> 121,42 € | E27: =of:=([.B27]+[.C27])/12 -> 121,42 € | F27: =of:=[$TILHyp1.C29] -> 0 € | G27: =of:=[$TILHyp2.C29] -> 391 € | H27: =of:=[$TIL_B1.C29] -> 0 € | I27: =of:=[$TIL_B2.C29] -> 0 € | K27: =of:=[$TILHyp1.D29] -> 0 € | L27: =of:=[$TILHyp2.D29] -> 1.066 € | M27: =of:=[$TIL_B1.D29] -> 0 € | N27: =of:=[$TIL_B2.D29] -> 0 €
A28: 26. | B28: =of:=SUM([.F28:.I28]) -> 360 € | C28: =of:=SUM([.K28:.N28]) -> 1.097 € | D28: =of:=([.B28]+[.C28])/12 -> 121,42 € | E28: =of:=([.B28]+[.C28])/12 -> 121,42 € | F28: =of:=[$TILHyp1.C30] -> 0 € | G28: =of:=[$TILHyp2.C30] -> 360 € | H28: =of:=[$TIL_B1.C30] -> 0 € | I28: =of:=[$TIL_B2.C30] -> 0 € | K28: =of:=[$TILHyp1.D30] -> 0 € | L28: =of:=[$TILHyp2.D30] -> 1.097 € | M28: =of:=[$TIL_B1.D30] -> 0 € | N28: =of:=[$TIL_B2.D30] -> 0 €
A29: 27. | B29: =of:=SUM([.F29:.I29]) -> 328 € | C29: =of:=SUM([.K29:.N29]) -> 1.129 € | D29: =of:=([.B29]+[.C29])/12 -> 121,42 € | E29: =of:=([.B29]+[.C29])/12 -> 121,42 € | F29: =of:=[$TILHyp1.C31] -> 0 € | G29: =of:=[$TILHyp2.C31] -> 328 € | H29: =of:=[$TIL_B1.C31] -> 0 € | I29: =of:=[$TIL_B2.C31] -> 0 € | K29: =of:=[$TILHyp1.D31] -> 0 € | L29: =of:=[$TILHyp2.D31] -> 1.129 € | M29: =of:=[$TIL_B1.D31] -> 0 € | N29: =of:=[$TIL_B2.D31] -> 0 €
A30: 28. | B30: =of:=SUM([.F30:.I30]) -> 295 € | C30: =of:=SUM([.K30:.N30]) -> 1.162 € | D30: =of:=([.B30]+[.C30])/12 -> 121,42 € | E30: =of:=([.B30]+[.C30])/12 -> 121,42 € | F30: =of:=[$TILHyp1.C32] -> 0 € | G30: =of:=[$TILHyp2.C32] -> 295 € | H30: =of:=[$TIL_B1.C32] -> 0 € | I30: =of:=[$TIL_B2.C32] -> 0 € | K30: =of:=[$TILHyp1.D32] -> 0 € | L30: =of:=[$TILHyp2.D32] -> 1.162 € | M30: =of:=[$TIL_B1.D32] -> 0 € | N30: =of:=[$TIL_B2.D32] -> 0 €
A31: 29. | B31: =of:=SUM([.F31:.I31]) -> 261 € | C31: =of:=SUM([.K31:.N31]) -> 1.196 € | D31: =of:=([.B31]+[.C31])/12 -> 121,42 € | E31: =of:=([.B31]+[.C31])/12 -> 121,42 € | F31: =of:=[$TILHyp1.C33] -> 0 € | G31: =of:=[$TILHyp2.C33] -> 261 € | H31: =of:=[$TIL_B1.C33] -> 0 € | I31: =of:=[$TIL_B2.C33] -> 0 € | K31: =of:=[$TILHyp1.D33] -> 0 € | L31: =of:=[$TILHyp2.D33] -> 1.196 € | M31: =of:=[$TIL_B1.D33] -> 0 € | N31: =of:=[$TIL_B2.D33] -> 0 €
A32: 30. | B32: =of:=SUM([.F32:.I32]) -> 226 € | C32: =of:=SUM([.K32:.N32]) -> 1.231 € | D32: =of:=([.B32]+[.C32])/12 -> 121,42 € | E32: =of:=([.B32]+[.C32])/12 -> 121,42 € | F32: =of:=[$TILHyp1.C34] -> 0 € | G32: =of:=[$TILHyp2.C34] -> 226 € | H32: =of:=[$TIL_B1.C34] -> 0 € | I32: =of:=[$TIL_B2.C34] -> 0 € | K32: =of:=[$TILHyp1.D34] -> 0 € | L32: =of:=[$TILHyp2.D34] -> 1.231 € | M32: =of:=[$TIL_B1.D34] -> 0 € | N32: =of:=[$TIL_B2.D34] -> 0 €
A33: 31. | B33: =of:=SUM([.F33:.I33]) -> 190 € | C33: =of:=SUM([.K33:.N33]) -> 1.267 € | D33: =of:=([.B33]+[.C33])/12 -> 121,42 € | E33: =of:=([.B33]+[.C33])/12 -> 121,42 € | F33: =of:=[$TILHyp1.C35] -> 0 € | G33: =of:=[$TILHyp2.C35] -> 190 € | H33: =of:=[$TIL_B1.C35] -> 0 € | I33: =of:=[$TIL_B2.C35] -> 0 € | K33: =of:=[$TILHyp1.D35] -> 0 € | L33: =of:=[$TILHyp2.D35] -> 1.267 € | M33: =of:=[$TIL_B1.D35] -> 0 € | N33: =of:=[$TIL_B2.D35] -> 0 €
A34: 32. | B34: =of:=SUM([.F34:.I34]) -> 153 € | C34: =of:=SUM([.K34:.N34]) -> 1.304 € | D34: =of:=([.B34]+[.C34])/12 -> 121,42 € | E34: =of:=([.B34]+[.C34])/12 -> 121,42 € | F34: =of:=[$TILHyp1.C36] -> 0 € | G34: =of:=[$TILHyp2.C36] -> 153 € | H34: =of:=[$TIL_B1.C36] -> 0 € | I34: =of:=[$TIL_B2.C36] -> 0 € | K34: =of:=[$TILHyp1.D36] -> 0 € | L34: =of:=[$TILHyp2.D36] -> 1.304 € | M34: =of:=[$TIL_B1.D36] -> 0 € | N34: =of:=[$TIL_B2.D36] -> 0 €
A35: 33. | B35: =of:=SUM([.F35:.I35]) -> 115 € | C35: =of:=SUM([.K35:.N35]) -> 1.342 € | D35: =of:=([.B35]+[.C35])/12 -> 121,42 € | E35: =of:=([.B35]+[.C35])/12 -> 121,42 € | F35: =of:=[$TILHyp1.C37] -> 0 € | G35: =of:=[$TILHyp2.C37] -> 115 € | H35: =of:=[$TIL_B1.C37] -> 0 € | I35: =of:=[$TIL_B2.C37] -> 0 € | K35: =of:=[$TILHyp1.D37] -> 0 € | L35: =of:=[$TILHyp2.D37] -> 1.342 € | M35: =of:=[$TIL_B1.D37] -> 0 € | N35: =of:=[$TIL_B2.D37] -> 0 €
A36: 34. | B36: =of:=SUM([.F36:.I36]) -> 76 € | C36: =of:=SUM([.K36:.N36]) -> 1.381 € | D36: =of:=([.B36]+[.C36])/12 -> 121,42 € | E36: =of:=([.B36]+[.C36])/12 -> 121,42 € | F36: =of:=[$TILHyp1.C38] -> 0 € | G36: =of:=[$TILHyp2.C38] -> 76 € | H36: =of:=[$TIL_B1.C38] -> 0 € | I36: =of:=[$TIL_B2.C38] -> 0 € | K36: =of:=[$TILHyp1.D38] -> 0 € | L36: =of:=[$TILHyp2.D38] -> 1.381 € | M36: =of:=[$TIL_B1.D38] -> 0 € | N36: =of:=[$TIL_B2.D38] -> 0 €
A37: 35. | B37: =of:=SUM([.F37:.I37]) -> 36 € | C37: =of:=SUM([.K37:.N37]) -> 0 € | D37: =of:=([.B37]+[.C37])/12 -> 2,98 € | E37: =of:=([.B37]+[.C37])/12 -> 2,98 € | F37: =of:=[$TILHyp1.C39] -> 0 € | G37: =of:=[$TILHyp2.C39] -> 36 € | H37: =of:=[$TIL_B1.C39] -> 0 € | I37: =of:=[$TIL_B2.C39] -> 0 € | K37: =of:=[$TILHyp1.D39] -> 0 € | L37: =of:=[$TILHyp2.D39] -> 0 € | M37: =of:=[$TIL_B1.D39] -> 0 € | N37: =of:=[$TIL_B2.D39] -> 0 €

Sheet Dia_Belastung

Sheet Dia_ZinsTilg
